[Event "Sardinia World Festival-A 2024"]
[Site "Orosei"]
[Date "2024.04.29"]
[Round "3.28"]
[White "Aghayev, Miragha"]
[Black "Dalaud, Dorian"]
[Result "1-0"]
[ECO "B07"]
[WhiteElo "2424"]
[BlackElo "2307"]
[Annotator "TA"]
[PlyCount "121"]
[EventDate "2024.04.26"]
[EventType "swiss"]
[EventCountry "ITA"]
[SourceTitle "playchess.com"]
[Source "ChessBase"]
[SourceQuality "1"]
[TimeControl "40/5400+30:1800+30"]

{[%evp 36,121,57,57,62,54,57,54,60,52,52,6,7,0,60,16,16,7,9,7,3,5,9,3,7,0,0,0,8,0,0,0,0,0,0,0,33,0,188,179,247,249,237,245,252,242,308,312,318,310,309,308,308,292,283,221,260,253,297,278,332,300,304,253,314,307,315,307,354,332,364,345,375,359,352,348,352,352,367,349,1567,1407,2783,2441,2403,1336,2221,2169]} 1. d4 {[%emt 0:00:03]} Nf6 {[%emt 0:01:57]} 2. Nf3 {[%emt 0:00:14]} g6 {[%emt 0:00:08]} 3. Nbd2 {[%emt 0:00:14]} Bg7 {[%emt 0:02:38]} 4. e4 {[%emt 0:00:49]} d6 {[%emt 0:00:40]} 5. Bb5+ {[%emt 0:00:06]} Nc6 {[%emt 0:00:06]} 6. O-O {[%emt 0:19:05] B07: Pirc Defence: Miscellaneous Systems.} O-O {[%emt 0:00:53]} 7. Re1 {[%emt 0:09:15]} Nd7 {[%emt 0:15:47]} 8. Nc4 $146 {[%emt 0:06:33]} ({Predecessor:} 8. Nf1 e5 9. c3 a6 10. Ba4 exd4 11. Bxc6 bxc6 12. cxd4 c5 13. Be3 Bb7 14. Qc2 {1-0 Salinas Herrera,P (2463)-Zherebukh,Y (2624) US Masters op 2023 (3)}) 8... e5 {[%emt 0:13:18]} 9. Bxc6 {[%emt 0:04:10]} bxc6 {[%emt 0:00:07]} 10. Na5 {[%emt 0:02:52]} c5 {[%emt 0:04:07]} 11. dxe5 {[%emt 0:20:55]} Nxe5 {[%emt 0:00:44]} 12. Nxe5 {[%emt 0:00:49]} Bxe5 {[%emt 0:00:29]} 13. Nc6 {[%emt 0:07:50]} Qe8 {[%emt 0:01:06]} 14. Nxe5 {[%emt 0:00:16]} Qxe5 {[%emt 0:00:07]} 15. Rb1 {[%emt 0:00:11]} Bb7 {[%emt 0:10:06]} 16. b3 {[%emt 0:02:33]} f6 {[%emt 0:00:13]} 17. Bb2 {[%emt 0:01:30]} Qe6 {[%emt 0:09:47]} 18. Qd2 {[%emt 0:03:49]} Rf7 {[%emt 0:05:23]} 19. Re3 {[%emt 0:00:38]} Re8 {[%emt 0:06:22]} 20. Rbe1 {[%emt 0:00:42]} Qd7 {[%emt 0:00:58]} 21. Qe2 {[%emt 0:03:10]} Re6 {[%emt 0:01:23]} 22. h3 {[%emt 0:02:08]} Rfe7 {[%emt 0:03:16]} 23. Qg4 {[%emt 0:03:29]} (23. Qd3 $14) 23... Qe8 $11 {[%emt 0:04:46]} 24. Qf4 {[%emt 0:01:19]} Qc6 {[%emt 0:01:58]} (24... g5 $11 25. Qg4 h5) 25. Kh2 {[%emt 0:07:41]} (25. Bxf6 $2 Rf7 (25... Rxe4 26. Qg5 $11) 26. f3 Rfxf6 $19 (26... Rexf6 $2 27. Qg5 $19)) 25... d5 {[%emt 0:08:01]} (25... Rxe4 $2 26. Rxe4 f5 (26... Rxe4 $2 27. Qxf6 $18) 27. f3 (27. Rxe7 $2 Qxg2#) 27... fxe4 28. Qf6 $18) 26. exd5 {[%emt 0:00:41]} Qxd5 {[%emt 0:00:07]} 27. f3 {[%emt 0:00:59]} (27. Bxf6 $2 Qxg2#) 27... Rxe3 {[%emt 0:07:06]} 28. Rxe3 {[%emt 0:00:09]} Rxe3 {[%emt 0:01:54]} 29. Qxe3 {[%emt 0:00:04]} Qd6+ {[%emt 0:00:02]} 30. Kg1 {[%emt 0:00:23]} Qd1+ {[%emt 0:00:07]} 31. Kh2 {[%emt 0:00:12]} Qd6+ {[%emt 0:00:05]} 32. Kh1 {[%emt 0:02:57]} Qd1+ {[%emt 0:00:29]} 33. Qg1 {[%emt 0:00:35]} Qxc2 {[%emt 0:01:15]} 34. Bxf6 {[%emt 0:00:06]} Qf5 $1 {[%emt 0:00:21]} 35. Qa1 {[%emt 0:00:57]} Kf7 {[%emt 0:01:31]} (35... Bxf3 $5 36. Kg1 (36. gxf3 Qxh3+ 37. Kg1 Qg3+ 38. Kf1 Qxf3+ 39. Ke1 Kf7 $11) 36... Bd5 $11) 36. Be5 {[%emt 0:00:11]} (36. Bh8 $5) 36... Qd7 $2 {[%emt 0:00:39]} (36... Bxf3 $11 {and Black has nothing to worry.} 37. gxf3 Qxf3+ 38. Kh2 (38. Kg1 Qe3+ 39. Kg2 Qe2+ 40. Kg1 Qe3+ 41. Kg2 Qe2+ 42. Kg1 Qe3+ $11) 38... Qf2+ 39. Kh1 Qf3+ 40. Kg1 Qe3+ 41. Kg2 Qe2+ 42. Kh1 Qf3+) 37. Qc1 $18 {[%emt 0:00:26]} Qd5 {[%emt 0:00:32]} (37... h5 $142 38. Qxc5 g5 39. Bxc7 (39. Qxa7 Qd5 $18) 39... Kg6 40. Qc2+ Kh6) 38. Qf4+ $18 {[%emt 0:00:21]} Ke8 {[%emt 0:00:27]} 39. Bxc7 {[%emt 0:00:23]} a6 {[%emt 0:00:31]} 40. Bb6 {[%emt 0:00:40]} Kd7 {[%emt 0:00:31]} 41. Qc7+ {[%emt 0:30:07]} Ke6 {[%emt 0:02:39]} 42. Bxc5 {[%emt 0:00:00]} Qd7 {[%emt 0:00:27]} 43. Qf4 {[%emt 0:00:00]} Qd1+ {[%emt 0:01:34]} 44. Kh2 {[%emt 0:00:00]} Qd5 {[%emt 0:00:27]} 45. Qb4 {[%emt 0:00:00]} Bc6 {[%emt 0:01:18]} 46. Kh1 {[%emt 0:00:00]} Bb7 {[%emt 0:01:57]} 47. Bg1 {[%emt 0:00:00]} Qd7 {[%emt 0:00:01]} 48. Qf4 {[%emt 0:00:00]} Qd6 {[%emt 0:01:02]} 49. Qh4 {[%emt 0:00:00]} Qe7 {[%emt 0:00:56]} 50. Qc4+ {[%emt 0:00:00]} Kd7 {[%emt 0:00:12]} 51. Bf2 {[%emt 0:00:00]} Qe6 {[%emt 0:00:25]} 52. Qa4+ {[%emt 0:00:00]} Kc8 {[%emt 0:00:56]} 53. Qf4 {[%emt 0:00:00]} Qf5 {[%emt 0:01:14]} 54. Qc4+ {[%emt 0:00:00]} Kd7 {[%emt 0:01:59]} 55. Qd4+ {[%emt 0:00:00]} Bd5 {[%emt 0:01:54]} 56. Qa7+ {[%emt 0:00:00]} Ke8 {[%emt 0:00:06]} 57. Qxa6 {[%emt 0:00:00]} Bxf3 $2 {[%emt 0:00:06]} (57... h5 58. a4 g5 59. Qe2+ Qe6 60. Qxe6+ Bxe6) 58. gxf3 $18 {[%emt 0:00:00]} Qxf3+ {[%emt 0:00:05]} 59. Kg1 {[%emt 0:00:00]} Qxh3 {[%emt 0:00:29]} 60. Qc6+ {[%emt 0:00:00]} Kf7 {[%emt 0:00:02]} 61. Qc4+ {[%emt 0:00:00]} 1-0

[Event "Sardinia World Festival-A 2024"]
[Site "Orosei"]
[Date "2024.04.29"]
[Round "3.29"]
[White "Andreev, Konstantin"]
[Black "Haldorsen, Benjamin"]
[Result "0-1"]
[ECO "B12"]
[WhiteElo "2244"]
[BlackElo "2419"]
[Annotator "RC"]
[PlyCount "56"]
[EventDate "2024.04.26"]
[EventType "swiss"]
[EventCountry "ITA"]
[SourceTitle "playchess.com"]
[Source "ChessBase"]
[SourceQuality "1"]
[TimeControl "40/5400+30:1800+30"]

1. e4 {[%emt 0:00:01]} c6 {[%emt 0:03:43]} 2. d4 {[%emt 0:00:19]} d5 {[%emt 0:00:09]} 3. e5 {[%emt 0:00:24]} Bf5 {[%emt 0:00:29]} 4. Nf3 {[%emt 0:00:27]} e6 {[%emt 0:00:32]} 5. Be2 {[%emt 0:00:35]} Nd7 {[%emt 0:00:39]} 6. O-O {[%emt 0:00:39]} a5 {[%emt 0:00:33]} 7. a4 {[%emt 0:03:20]} f6 {[%emt 0:01:07]} 8. Bd3 {[%emt 0:00:05]} Bxd3 {[%emt 0:02:04]} 9. Qxd3 {[%emt 0:00:05]} fxe5 {[%emt 0:00:05]} 10. dxe5 {[%emt 0:03:19]} Qc7 {[%emt 0:00:40]} 11. Re1 {[%emt 0:05:14]} Nc5 {[%emt 0:07:00]} 12. Qe2 {[%emt 0:00:27]} Ne7 {[%emt 0:02:52]} 13. Bf4 {[%emt 0:02:51]} Ng6 {[%emt 0:11:12]} 14. Bg3 {[%emt 0:00:38]} Be7 {[%emt 0:04:49]} 15. Nbd2 {[%emt 0:01:07]} O-O {[%emt 0:00:59]} 16. Qe3 {[%emt 0:04:30]} Rae8 {[%emt 0:05:56]} 17. c3 {[%emt 0:09:28]} Qd8 {[%emt 0:09:57]} 18. Qd4 {[%emt 0:05:59]} Rf5 {[%emt 0:09:39]} 19. Qg4 {[%emt 0:06:23]} Qb6 {[%emt 0:08:00]} 20. Rab1 {[%emt 0:13:44]} Nd3 {[%emt 0:06:40]} 21. Re3 {[%emt 0:00:43]} Ndf4 {[%emt 0:01:18]} 22. Bxf4 {[%emt 0:04:18]} Nxf4 {[%emt 0:01:19]} 23. Kh1 {[%emt 0:17:41]} Bc5 {[%emt 0:04:48]} 24. Nd4 {[%emt 0:00:40]} Bxd4 {[%emt 0:00:36]} 25. cxd4 {[%emt 0:00:05]} Qxd4 {[%emt 0:00:25]} 26. Nb3 {[%emt 0:02:40]} Qxa4 {[%emt 0:02:00]} 27. g3 {[%emt 0:01:10]} h5 {[%emt 0:00:48]} 28. Qd1 {[%emt 0:00:48]} Nh3 {[%emt 0:00:12]} 0-1

[Event "Sardinia World Festival-A 2024"]
[Site "Orosei"]
[Date "2024.04.29"]
[Round "3.30"]
[White "Shevchenko, Kirill"]
[Black "Deveci, Huseyin Said"]
[Result "1-0"]
[ECO "D17"]
[WhiteElo "2675"]
[BlackElo "2255"]
[Annotator "TA"]
[PlyCount "127"]
[EventDate "2024.04.26"]
[EventType "swiss"]
[EventCountry "ITA"]
[SourceTitle "playchess.com"]
[Source "ChessBase"]
[SourceQuality "1"]
[TimeControl "40/5400+30:1800+30"]

{[%evp 22,127,82,45,47,46,45,47,51,50,83,56,83,85,141,141,133,133,144,122,126,62,146,149,147,156,157,143,156,116,180,112,168,160,182,159,172,107,108,92,96,0,8,14,16,12,40,25,39,25,51,0,88,55,76,42,23,19,52,22,75,23,42,40,58,26,49,0,0,0,0,0,0,0,0,0,0,0,75,75,103,75,108,87,398,401,581,583,583,441,597,625,550,596,675,681,723,723,1018,948,1053,962,4134,4250,4935,2068,1596,1556]} 1. d4 {[%emt 0:00:24]} d5 {[%emt 0:00:07]} 2. c4 {[%emt 0:00:12]} c6 {[%emt 0:00:20]} 3. Nf3 {[%emt 0:00:40]} Nf6 {[%emt 0:00:08]} 4. Nc3 {[%emt 0:00:05]} dxc4 {[%emt 0:00:19]} 5. a4 {[%emt 0:00:40]} Bf5 {[%emt 0:00:35]} 6. Ne5 {[%emt 0:00:33]} Nbd7 {[%emt 0:00:48]} 7. Nxc4 {[%emt 0:00:50]} Nb6 {[%emt 0:00:05]} 8. Ne5 {[%emt 0:00:03]} e6 {[%emt 0:00:20]} 9. f3 {[%emt 0:07:11]} a5 {[%emt 0:10:12] D17: Slav Defence: 5 a4 Bf5: Lines with 6 Nh4 and 6 Ne5.} 10. e4 {[%emt 0:08:22]} Bg6 {[%emt 0:00:05]} 11. Be3 {[%emt 0:00:08]} Nfd7 {[%emt 0:03:35]} 12. Nd3 {[%emt 0:06:37]} Bd6 {[%emt 0:26:54]} 13. Qb3 {[%emt 0:04:34]} O-O {[%emt 0:04:50]} 14. Be2 {[%emt 0:00:46]} Re8 $146 {[%emt 0:08:18]} ({Predecessor:} 14... Qc7 15. f4 Rfe8 16. Rc1 Bf8 17. O-O f5 18. e5 Bf7 19. Bf3 Qb8 20. Rfd1 Nd5 21. Nxd5 exd5 {½-½ Kolev,A (2086)-Andreev,S (2210) BUL-ch sf 77th rapid 2013 (9)}) 15. O-O {[%emt 0:07:29]} Kh8 {[%emt 0:41:24]} 16. Rad1 {[%emt 0:08:45]} Rb8 {[%emt 0:00:00]} 17. Ne5 {[%emt 0:03:09]} f6 {[%emt 0:00:00]} (17... Qe7 $142) 18. Nxg6+ $16 {[%emt 0:00:57]} hxg6 {[%emt 0:00:00]} 19. f4 {[%emt 0:00:20]} f5 {[%emt 0:00:00]} 20. Rf3 {[%emt 0:05:47]} Bb4 {[%emt 0:00:00]} 21. e5 {[%emt 0:02:35]} (21. Bd3 $16) 21... Bxc3 {[%emt 0:00:00]} ({Better is} 21... Kg8 $14) 22. bxc3 $16 {[%emt 0:02:14]} (22. Qxc3 $6 Nxa4 23. Qa3 Nab6 $11) 22... Nd5 {[%emt 0:00:00]} 23. c4 {[%emt 0:00:53]} Nxe3 {[%emt 0:00:00]} 24. Qxe3 {[%emt 0:00:06]} Qe7 {[%emt 0:00:00]} 25. g4 {[%emt 0:02:46]} Nf8 {[%emt 0:00:00]} (25... fxg4 $16 {keeps fighting.} 26. Rg3 Qb4) 26. Kh1 {[%emt 0:06:43]} (26. gxf5 $18 gxf5 27. Rh3+ Kg8 28. Kh1) 26... b5 {[%emt 0:00:00]} (26... fxg4 $16 27. Rg3 Qb4) 27. gxf5 {[%emt 0:02:58]} (27. axb5 fxg4 28. Rg3 cxb5 $16) 27... gxf5 {[%emt 0:00:00]} 28. cxb5 {[%emt 0:12:27]} cxb5 {[%emt 0:00:00]} 29. Bxb5 {[%emt 0:00:03]} ({White should play} 29. axb5 $18 {Hoping for d5.} Rec8 30. d5) 29... Red8 $16 {[%emt 0:00:00]} 30. Bc6 {[%emt 0:03:10]} Rbc8 {[%emt 0:00:00]} 31. Bb5 {[%emt 0:04:47]} (31. Rh3+ $16 Kg8 32. Qf3) 31... Qb7 {[%emt 0:00:00]} 32. Kg1 {[%emt 0:00:32]} Rc2 {[%emt 0:00:00]} 33. Rf2 {[%emt 0:00:43]} Rc7 {[%emt 0:01:57]} 34. Qf3 {[%emt 0:01:45]} Qb6 {[%emt 0:00:47]} 35. Rfd2 {[%emt 0:00:01]} Kg8 {[%emt 0:00:55]} 36. Kh1 {[%emt 0:02:29]} (36. Kf1 $14) 36... Rd5 {[%emt 0:01:08]} (36... Ng6 $11) 37. h4 {[%emt 0:00:50]} g6 {[%emt 0:01:25]} 38. Qe3 {[%emt 0:02:24]} Rh7 {[%emt 0:01:13]} 39. Rh2 {[%emt 0:00:05]} Rd8 {[%emt 0:00:07]} 40. Kg1 {[%emt 0:01:20]} Qa7 {[%emt 0:00:59]} (40... Rc8 $1 $11 {remains equal.}) 41. Qf2 {[%emt 0:33:51]} (41. h5 $16) 41... Qc7 {[%emt 0:31:24]} 42. Kg2 {[%emt 0:00:00]} Qe7 {[%emt 0:00:00]} 43. Rd3 {[%emt 0:00:00]} Rc8 {[%emt 0:00:00]} 44. Kg3 {[%emt 0:00:00]} (44. Rh1 $14 {deserves consideration.}) 44... Qb4 $11 {[%emt 0:00:00]} 45. Rh1 {[%emt 0:00:00]} Rhc7 {[%emt 0:05:05]} 46. Rhd1 {[%emt 0:00:00]} Rc2 {[%emt 0:00:00]} 47. Qf3 {[%emt 0:00:00]} Rb2 {[%emt 0:00:00]} 48. Bc6 {[%emt 0:00:00]} Kg7 {[%emt 0:00:00]} 49. d5 {[%emt 0:00:00]} Qb6 {[%emt 0:00:00]} (49... exd5 $11 50. Rd4 (50. Qxd5 $2 {perishes.} Qb6 $19) (50. Bxd5 Rcc2 $15) 50... Qb6 51. Bxd5 Rcc2) 50. Qe3 $16 {[%emt 0:00:00]} Qxe3+ {[%emt 0:00:00]} 51. Rxe3 {[%emt 0:00:00]} exd5 {[%emt 0:00:00]} 52. Bxd5 {[%emt 0:00:00]} Rcc2 $2 {[%emt 0:00:00][%mdl 8192]} (52... Rc7 $16 {is tougher.}) 53. e6 $18 {[%emt 0:02:10]} Nh7 {[%emt 0:00:00]} (53... Nxe6 {was necessary.} 54. Rxe6 Rc3+ 55. Bf3 Rbb3) 54. e7 $18 {[%emt 0:01:11]} Nf6 {[%emt 0:00:00]} 55. e8=N+ {[%emt 0:00:09]} (55. e8=B $2 {is a self mate.} Nh5+ 56. Kh3 Rh2#) 55... Nxe8 {[%emt 0:00:00]} 56. Rxe8 {[%emt 0:00:33]} Rc3+ {[%emt 0:00:00]} 57. Bf3 {[%emt 0:00:01]} Rbb3 {[%emt 0:00:00] [#]} 58. Rf1 $1 {[%emt 0:02:35]} ({Weaker is} 58. Rd7+ Kf6 $11) 58... Rb4 {[%emt 0:00:00]} 59. Ra8 {[%emt 0:00:35]} Rxa4 {[%emt 0:00:00]} 60. Rd1 {[%emt 0:03:02]} Rc7 {[%emt 0:05:05]} 61. Rd5 {[%emt 0:00:00]} Re7 {[%emt 0:02:19]} 62. Rdxa5 {[%emt 0:00:00]} Rxa5 {[%emt 0:00:23]} 63. Rxa5 {[%emt 0:00:00]} Re6 {[%emt 0:00:02]} 64. Rc5 {[%emt 0:00:00]} 1-0

[Event "Sardinia World Festival-A 2024"]
[Site "Orosei"]
[Date "2024.04.29"]
[Round "3.31"]
[White "Lever, Erwan"]
[Black "Van Foreest, Jorden"]
[Result "0-1"]
[ECO "E01"]
[WhiteElo "2254"]
[BlackElo "2668"]
[Annotator "TA"]
[PlyCount "48"]
[EventDate "2024.04.26"]
[EventType "swiss"]
[EventCountry "ITA"]
[SourceTitle "playchess.com"]
[Source "ChessBase"]
[SourceQuality "1"]
[TimeControl "40/5400+30:1800+30"]

{[%evp 23,48,10,15,-15,43,0,0,-62,-68,-177,-156,-179,-187,-172,-186,-295,-287,-287,-278,-277,-272,-271,-258,-260,-277,-384,-380]} 1. d4 {[%emt 0:03:45]} e6 {[%emt 0:00:35]} 2. Nf3 {[%emt 0:00:27]} c5 {[%emt 0:00:13]} 3. c4 {[%emt 0:01:33]} cxd4 {[%emt 0:00:16]} 4. Nxd4 {[%emt 0:00:05]} Nf6 {[%emt 0:00:43]} 5. g3 {[%emt 0:03:54]} d5 {[%emt 0:01:01]} 6. Bg2 {[%emt 0:00:08]} e5 {[%emt 0:00:39]} 7. Nf3 {[%emt 0:00:09]} d4 {[%emt 0:00:13]} 8. O-O {[%emt 0:00:11]} Nc6 {[%emt 0:00:10]} 9. e3 {[%emt 0:00:21]} Be7 {[%emt 0:06:34]} 10. exd4 {[%emt 0:00:45]} exd4 {[%emt 0:00:07]} 11. Bf4 {[%emt 0:00:35]} O-O {[%emt 0:01:05]} 12. Ne5 {[%emt 0:01:05]} Qb6 {[%emt 0:00:15]} 13. Qb3 {[%emt 0:14:25]} Nb4 {[%emt 0:16:35]} (13... Na5 $11 14. Qxb6 axb6) 14. Na3 {[%emt 0:11:08]} Bf5 {[%emt 0:01:59]} 15. Rfe1 {[%emt 0:01:55]} (15. Rac1 $11) 15... Bc5 $15 {[%emt 0:04:16] Threatens to win with ...d3.} 16. Rad1 {[%emt 0:13:59]} ({Better is} 16. Qf3 $15) 16... d3 $19 {[%emt 0:01:19]} 17. Be3 {[%emt 0:07:26]} Rae8 {[%emt 0:01:19]} 18. Bxc5 {[%emt 0:02:38]} Qxc5 {[%emt 0:00:09]} 19. Qc3 {[%emt 0:08:03]} (19. Re3 $142) 19... Nxa2 {[%emt 0:01:10]} 20. Nxd3 {[%emt 0:00:18]} Nxc3 {[%emt 0:00:34]} 21. Nxc5 {[%emt 0:00:06]} Nxd1 {[%emt 0:00:06]} 22. Rxd1 {[%emt 0:00:05]} b6 {[%emt 0:00:06]} 23. Nb3 {[%emt 0:00:49]} Rd8 {[%emt 0:02:13]} 24. Ra1 {[%emt 0:00:48]} Rd3 {[%emt 0:00:13] Black took control after the opening.   Weighted Error Value: White=0.44/Black=0.09 (flawless) .  Mistake:       	White=3     	Black=1      Inaccurate:     	White=2     	---        OK:         	White=2     	Black=8      Best:        	White=2     	Black=1} 0-1

[Event "Sardinia World Festival-A 2024"]
[Site "Orosei"]
[Date "2024.04.29"]
[Round "3.32"]
[White "Samunenkov, Ihor"]
[Black "Balabayeva, Xeniya"]
[Result "1/2-1/2"]
[ECO "E05"]
[WhiteElo "2548"]
[BlackElo "2248"]
[Annotator "TA"]
[PlyCount "94"]
[EventDate "2024.04.26"]
[EventType "swiss"]
[EventCountry "ITA"]
[SourceTitle "playchess.com"]
[Source "ChessBase"]
[SourceQuality "1"]
[TimeControl "40/5400+30:1800+30"]

{[%evp 16,94,18,16,9,8,29,5,6,12,18,11,10,0,54,35,32,59,75,73,99,84,75,79,75,29,24,20,57,37,39,8,10,9,33,29,28,16,18,15,75,72,66,69,65,59,88,87,76,64,88,68,99,70,153,152,189,188,169,154,289,287,486,123,131,0,12,0,0,0,0,0,0,0,0,0,0,0,0,0,0]} 1. d4 {[%emt 0:00:08]} d5 {[%emt 0:00:08]} 2. c4 {[%emt 0:00:09]} e6 {[%emt 0:00:09]} 3. Nf3 {[%emt 0:00:11]} Nf6 {[%emt 0:00:14]} 4. g3 {[%emt 0:00:13]} Be7 {[%emt 0:00:20]} 5. Bg2 {[%emt 0:00:13]} O-O {[%emt 0:00:13]} 6. O-O {[%emt 0:00:10]} dxc4 {[%emt 0:00:15]} 7. Qc2 {[%emt 0:01:29]} a6 {[%emt 0:00:07]} 8. a4 {[%emt 0:00:19]} c5 {[%emt 0:00:24]} 9. dxc5 {[%emt 0:06:13]} Bxc5 {[%emt 0:00:16]} 10. Qxc4 {[%emt 0:02:59]} Qe7 {[%emt 0:10:12][%cal Ob7b5]} 11. Ne1 {[%emt 0:22:41]} e5 {[%emt 0:05:52]} 12. Nc3 {[%emt 0:08:39]} Be6 {[%emt 0:04:31]} 13. Qh4 {[%emt 0:00:28]} h6 {[%emt 0:34:28]} 14. Nd3 {[%emt 0:03:51][%cal Oc1h6] aiming for Bxh6!} Bd4 {[%emt 0:02:57]} (14... Bd6 $11) 15. Ne4 $14 {[%emt 0:06:57][%cal Oc1h6] Hoping for Bxh6!} Nbd7 {[%emt 0:01:46]} 16. Bd2 {[%emt 0:01:10]} a5 {[%emt 0:03:14] Wards off Bb4} 17. e3 {[%emt 0:09:22]} Bb6 {[%emt 0:13:22]} 18. Bc3 {[%emt 0:03:30]} Bf5 {[%emt 0:04:26] White must now prevent ...Bxe4.} 19. Nxf6+ {[%emt 0:06:40]} Qxf6 {[%emt 0:00:26] [#]} 20. Qxf6 {[%emt 0:00:29]} ({Better is} 20. Qc4 $1 $16) 20... gxf6 $11 {[%emt 0:00:11]} 21. Rfd1 {[%emt 0:00:14][%cal Bf1d1,Bd1d2,Bd2d5][%mdl 32]} Rab8 {[%emt 0:03:08]} 22. Kf1 {[%emt 0:14:13]} Rfc8 {[%emt 0:02:23]} 23. Ke2 {[%emt 0:03:05]} Be6 {[%emt 0:04:31]} 24. Rd2 {[%emt 0:02:44]} Nc5 {[%emt 0:02:42]} 25. Nxc5 {[%emt 0:00:20]} Rxc5 {[%emt 0:00:02]} 26. Ke1 {[%emt 0:03:05]} Bc7 {[%emt 0:03:27]} 27. Bf1 {[%emt 0:00:40]} Bc4 {[%emt 0:02:44]} (27... f5 $11 {keeps the balance.}) 28. Bxc4 {[%emt 0:01:56]} Rxc4 {[%emt 0:00:04]} 29. Rd5 {[%emt 0:00:10]} b6 {[%emt 0:00:42]} 30. Ke2 {[%emt 0:01:45]} Re8 {[%emt 0:00:37]} 31. Kd3 {[%emt 0:00:36]} Rc6 {[%emt 0:00:03]} 32. Ke4 {[%emt 0:01:08]} Kg7 {[%emt 0:00:47] [#]} 33. Kf5 $1 $36 {[%emt 0:00:37][%mdl 2048] White is more active.} Rc4 {[%emt 0:01:19]} 34. Rd7 {[%emt 0:00:16]} h5 {[%emt 0:00:51]} (34... Re6 $14) 35. Rad1 $16 {[%emt 0:00:47] Active counter play!} Re6 {[%emt 0:00:34][%cal Oe6c6]} 36. e4 {[%emt 0:00:21]} Rcc6 {[%emt 0:00:28]} 37. R1d5 {[%emt 0:00:32]} Rc4 {[%emt 0:00:35]} (37... Bd6 $16 38. Rb7 Kf8) 38. h4 $18 {[%emt 0:00:30]} Rec6 $2 {[%emt 0:00:26]} (38... Re8 {was worth a try.} 39. f3 Rf8) 39. Re7 $2 {[%emt 0:00:38]} (39. g4 $18 {and White stays clearly on top.} hxg4 40. h5 Rxc3 41. bxc3 Rxc3 42. Kxg4) 39... Bd6 $16 {[%emt 0:00:11]} 40. Rd7 {[%emt 0:00:30]} ({White should play} 40. Ra7 $16) 40... Bb4 {[%emt 0:00:52] The position is equal.} 41. Rb7 {[%emt 0:14:36]} (41. Bxb4 {simplifies} Rxb4 42. Rb7 Rxb2 43. f4) 41... Bxc3 {[%emt 0:12:37]} 42. Rdd7 {[%emt 0:04:28] Dodges Rc7} Bb4 $1 {[%emt 0:07:13]} (42... Bxb2 $2 {is the wrong capture.} 43. Rxf7+ Kg8 44. Rg7+ Kf8 45. Kg6 (45. Rh7 Kg8 $18) 45... f5+ (45... Rxa4 46. Rb8+) 46. Kh7 $18 (46. Kxh5 Rxe4 47. Rh7 Kg8 $11) (46. Kxh5 Rxe4 47. Rbf7+ Ke8 $11)) 43. Rxf7+ {[%emt 0:00:18]} Kg8 {[%emt 0:00:20]} 44. Rg7+ {[%emt 0:05:32]} Kh8 $1 {[%emt 0:00:19]} 45. Rh7+ {[%emt 0:03:47]} Kg8 {[%emt 0:00:05]} 46. Rhg7+ {[%emt 0:01:33]} (46. Rxh5 Bf8 47. Rb8 Rc2 $19 (47... Rxa4 48. Rh6 $11)) 46... Kh8 $1 {[%emt 0:00:09]} 47. Rh7+ {[%emt 0:02:16]} Kg8 {[%emt 0:00:06] White really could win this.   Weighted Error Value: White=0.24 (precise) /Black=0.30.  Missed win:     	White=1     	---        Mistake:       	White=2     	Black=5      Inaccurate:     	White=1     	Black=4      OK:         	White=15    	Black=9      Best:        	White=4     	Black=2      Strong:       	White=1     	Black=3} 1/2-1/2